Department Family,Entity,Date,Expense Type,Expense Area,Supplier,Transaction Number,Amount,
DOH,London Ambulance Service NHS Trust,12/06/2020,Data Hosting Rental,Im&T Centralised Costs,London Fire & Emergency Planning Authori,521571,37065.6,
DOH,London Ambulance Service NHS Trust,23/06/2020,Course And Conference Fees,Hee Placements,St. Georges University Of London,524870,200000.00,
DOH,London Ambulance Service NHS Trust,24/06/2020,Course And Conference Fees,Hee Placements,Kingston University London,525034,200000.00,
DOH,London Ambulance Service NHS Trust,10/06/2020,Computer Peripherals & Access,Capital,Dell Computer Corporation Ltd,526376,35424,
DOH,London Ambulance Service NHS Trust,10/06/2020,Computer Hardware,Capital,Dell Computer Corporation Ltd,527393,66240,
DOH,London Ambulance Service NHS Trust,12/06/2020,Computer Hardware,Capital,Dell Computer Corporation Ltd,527904,49700.4,
DOH,London Ambulance Service NHS Trust,12/06/2020,Computer Hardware,Capital,Dell Computer Corporation Ltd,527906,49700.4,
DOH,London Ambulance Service NHS Trust,10/06/2020,Computer Hardware,Capital,Dell Computer Corporation Ltd,528542,69000,
DOH,London Ambulance Service NHS Trust,01/06/2020,Capitalised Software,Capital,Dell Computer Corporation Ltd,529777,40920.67,
DOH,London Ambulance Service NHS Trust,01/06/2020,Computer Software Maintenance,Systems,Dell Computer Corporation Ltd,529777,33145.78,
DOH,London Ambulance Service NHS Trust,01/06/2020,Subscriptions To Associations,Corporate Governance,Care Quality Commission,530548,289561.00,
DOH,London Ambulance Service NHS Trust,03/06/2020,Make Ready Support,Make Ready Service,Interserve Hospital Services,530889,395106,
DOH,London Ambulance Service NHS Trust,09/06/2020,Building Maint-Planned,West Ham Estates,Trios Facilities Management Limited,531074,39052.93,
DOH,London Ambulance Service NHS Trust,01/06/2020,Capitalised Software,Capital,Software Box Ltd,531451,180387.39,
DOH,London Ambulance Service NHS Trust,01/06/2020,Computer Software Maintenance,Covid-19 - Im&T,Software Box Ltd,531451,45036.85,
DOH,London Ambulance Service NHS Trust,01/06/2020,Taxis & Mini Cabs,Sub-Contracted Transport,Addison Lee,531452,30148.32,
DOH,London Ambulance Service NHS Trust,01/06/2020,Capitalised Software,Capital,Daisy Communications Ltd,531498,264960,
DOH,London Ambulance Service NHS Trust,01/06/2020,Phone & Fax Equipment,Capital,Daisy Communications Ltd,531498,58944,
DOH,London Ambulance Service NHS Trust,01/06/2020,Acd Maintenance,Covid-19 - Im&T,Daisy Communications Ltd,531498,2616.96,
DOH,London Ambulance Service NHS Trust,01/06/2020,Building Maintenance,Greenwich Estates,Maracom Ltd,531508,30236.4,
DOH,London Ambulance Service NHS Trust,12/06/2020,Computer Hardware,Capital,Dell Computer Corporation Ltd,531843,49700.4,
DOH,London Ambulance Service NHS Trust,12/06/2020,Computer Hardware,Capital,Dell Computer Corporation Ltd,531844,49700.4,
DOH,London Ambulance Service NHS Trust,01/06/2020,Professional Fees,Im&T Management,Tm Management Solutions Ltd,532031,25020,
DOH,London Ambulance Service NHS Trust,12/06/2020,Rent,Maritime House Estates,Dooba Investments Iii Limited,532073,194201.09,
DOH,London Ambulance Service NHS Trust,12/06/2020,Service Charges,Maritime House Estates,Dooba Investments Iii Limited,532073,82123.44,
DOH,London Ambulance Service NHS Trust,01/06/2020,Furniture & Fittings,Capital,Assa Abloy Ltd T/A Abloy Uk,532219,98025.12,
DOH,London Ambulance Service NHS Trust,03/06/2020,Medical & Surgical Items,Covid-19 - Logistics,Full Support Healthcare Ltd,532237,274362.50,
DOH,London Ambulance Service NHS Trust,10/06/2020,Private Ambulance Hire,Ops Central - Private Amb,Falck Uk Ambulance Service Ltd,532350,50029.88,
DOH,London Ambulance Service NHS Trust,01/06/2020,Building Maintenance,Fleet Support Services,Coniston Limited,532470,35893.2,
DOH,London Ambulance Service NHS Trust,01/06/2020,Tyres,Fleet Support Services,Ats Euromaster Ltd,532537,36667.02,
DOH,London Ambulance Service NHS Trust,01/06/2020,Buildings,Capital,Gray Dungate Poole Ltd,533220,61110.9,
DOH,London Ambulance Service NHS Trust,01/06/2020,Buildings,Capital,Gray Dungate Poole Ltd,533229,71775.6,
DOH,London Ambulance Service NHS Trust,01/06/2020,Buildings,Capital,Gray Dungate Poole Ltd,533230,92988,
DOH,London Ambulance Service NHS Trust,01/06/2020,Buildings,Capital,Gray Dungate Poole Ltd,533231,66744,
DOH,London Ambulance Service NHS Trust,01/06/2020,Cleaning Of Premises,Covid-19 - Property,Lakethorne Ltd,533446,30757.72,
DOH,London Ambulance Service NHS Trust,01/06/2020,Computer Software Maintenance,Covid-19 - Im&T,Daisy Communications Ltd,533622,-26340.44,
DOH,London Ambulance Service NHS Trust,01/06/2020,Network Equipment & Services,Capital,Daisy Communications Ltd,533622,-186855.98,
DOH,London Ambulance Service NHS Trust,01/06/2020,Project Management ,Capital,Daisy Communications Ltd,533622,-1890,
DOH,London Ambulance Service NHS Trust,01/06/2020,Computer Hardware,Capital,Stone Computers Ltd,533718,51316.6,
DOH,London Ambulance Service NHS Trust,17/06/2020,Computer Hardware,Capital,Daisy Communications Ltd,533819,52860,
DOH,London Ambulance Service NHS Trust,01/06/2020,Charitable Funds,Balance Sheet,Volkswagen Group Leasing,534171,-41453.24,
DOH,London Ambulance Service NHS Trust,03/06/2020,Professional Fees,Covid-19 - Critical Care Trans,Association Of Ambulance Chief Executives,534220,35089.92,
DOH,London Ambulance Service NHS Trust,10/06/2020,Acd Maintenance,Networks,Bt Plc,534226,54372.22,
DOH,London Ambulance Service NHS Trust,03/06/2020,Computer Hardware,Capital,Bt Plc,534227,98904.24,
DOH,London Ambulance Service NHS Trust,10/06/2020,Computer Hardware,Capital,Bt Plc,534244,71480.52,
DOH,London Ambulance Service NHS Trust,10/06/2020,Computer Software Maintenance,Covid-19 - Im&T,Bt Plc,534244,4678.56,
DOH,London Ambulance Service NHS Trust,10/06/2020,Computer Software,Covid-19 - Im&T,Bt Plc,534245,25079.78,
DOH,London Ambulance Service NHS Trust,24/06/2020,Medical & Surgical Items,Covid-19 - Logistics,Full Support Healthcare Ltd,534426,151775.00,
DOH,London Ambulance Service NHS Trust,01/06/2020,Medical & Surgical Items,Covid-19 - Logistics,Porch Group London Ltd,534465,108000,
DOH,London Ambulance Service NHS Trust,01/06/2020,Medical & Surgical Items,Covid-19 - Logistics,Porch Group London Ltd,534466,227784,
DOH,London Ambulance Service NHS Trust,01/06/2020,Electrical Items,Covid-19 - Fleet,Emergency Services Solutions Ltd,534827,54829.06,
DOH,London Ambulance Service NHS Trust,01/06/2020,Private Ambulance Hire,Ops Central - Private Amb,St John Ambulance Londonprince,534835,39605.52,
DOH,London Ambulance Service NHS Trust,10/06/2020,Rent,111 Sel Operations,Avison Young (Pma321),534860,60128.26,
DOH,London Ambulance Service NHS Trust,10/06/2020,Service Charges,111 Sel Operations,Avison Young (Pma321),534860,24187.2,
DOH,London Ambulance Service NHS Trust,01/06/2020,Ambulance Equipment,Fleet Support Services,Ulemco Limited,534867,73618.36,
DOH,London Ambulance Service NHS Trust,01/06/2020,Medical & Surgical Items,Covid-19 - Logistics,Full Support Healthcare Ltd,535012,100872.00,
DOH,London Ambulance Service NHS Trust,03/06/2020,Professional Fees,Covid-19 - Critical Care Trans,Association Of Ambulance Chief Executives,535149,-29329.92,
DOH,London Ambulance Service NHS Trust,17/06/2020,Professional Fees,Covid-19 - Im&T,Bt Plc,535360,155040.07,
DOH,London Ambulance Service NHS Trust,19/06/2020,Computer Hardware,Capital,Bt Plc,535387,112442.39,
DOH,London Ambulance Service NHS Trust,19/06/2020,Ip Telephony,Covid-19 - Im&T,Bt Plc,535387,74817.47,
DOH,London Ambulance Service NHS Trust,19/06/2020,Project Management ,Capital,Bt Plc,535387,2700,
DOH,London Ambulance Service NHS Trust,24/06/2020,Rent,Cody Road Estates,Cbre Ltd,535749,79650.00,
DOH,London Ambulance Service NHS Trust,24/06/2020,Service Charges,Cody Road Estates,Cbre Ltd,535749,4362.01,
DOH,London Ambulance Service NHS Trust,12/06/2020,Medical & Surgical Items,Covid-19 - Logistics,Teleflex Medical,535916,42710.4,
DOH,London Ambulance Service NHS Trust,05/06/2020,Medical & Surgical Items,Covid-19 - Logistics,Uniwipe Europe Ltd,535964,44928,
DOH,London Ambulance Service NHS Trust,03/06/2020,Phone & Fax Equipment,Covid-19 - Im&T,Daisy Communications Ltd,536080,40051.2,
DOH,London Ambulance Service NHS Trust,10/06/2020,Acd Maintenance,Networks,Bt Plc,536106,50761.98,
DOH,London Ambulance Service NHS Trust,03/06/2020,Private Ambulance Hire,Ops Central - Private Amb,St John Ambulance Londonprince,536145,39237.51,
DOH,London Ambulance Service NHS Trust,03/06/2020,Private Ambulance Hire,Ops Central - Private Amb,St John Ambulance Londonprince,536421,28771.16,
DOH,London Ambulance Service NHS Trust,17/06/2020,Capitalised Software,Capital,Daisy Communications Ltd,536430,334210.66,
DOH,London Ambulance Service NHS Trust,17/06/2020,Computer Software Maintenance,Covid-19 - Im&T,Daisy Communications Ltd,536430,70072.8,
DOH,London Ambulance Service NHS Trust,12/06/2020,Computer Hardware,Capital,Xma Ltd,536524,163248,
DOH,London Ambulance Service NHS Trust,17/06/2020,Medical & Surgical Items,Covid-19 - Logistics,Ambu Limited,536655,58300.74,
DOH,London Ambulance Service NHS Trust,17/06/2020,Technical Support - Contract,Capita Contract,Capita Secure Information Solutions Ltd,536756,63061.52,
DOH,London Ambulance Service NHS Trust,02/06/2020,Make Ready Support,Covid-19 - Logistics,Interserve Hospital Services,536772,200324.25,
DOH,London Ambulance Service NHS Trust,05/06/2020,Private Ambulance Hire,Ops Central - Private Amb,St John Ambulance Londonprince,536789,32039.11,
DOH,London Ambulance Service NHS Trust,24/06/2020,Rent,Pocock Street,Tlg Llc,536791,95091.82,
DOH,London Ambulance Service NHS Trust,19/06/2020,Mobile Phone Rental,Telecommunications,Vodafone Corporate Limited,536855,134483.02,
DOH,London Ambulance Service NHS Trust,17/06/2020,Computer Software,Covid-19 - Im&T,Advanced Health & Care,537005,42384,
DOH,London Ambulance Service NHS Trust,17/06/2020,Computer Software Maintenance,Covid-19 - Im&T,Advanced Health & Care,537005,38196,
DOH,London Ambulance Service NHS Trust,19/06/2020,Taxis & Mini Cabs,Non Emergency Transport,Addison Lee,537009,38588.58,
DOH,London Ambulance Service NHS Trust,10/06/2020,Taxis & Mini Cabs,Csu,Addison Lee,537011,27806.89,
DOH,London Ambulance Service NHS Trust,17/06/2020,Managed Service - Call Handler,Covid-19 - Iuc Service,Inhealth Ltd,537068,800083.5,
DOH,London Ambulance Service NHS Trust,17/06/2020,Managed Service - Call Handler,Covid-19 - Iuc Service,Inhealth Ltd,537069,1140000,
DOH,London Ambulance Service NHS Trust,17/06/2020,Computer Software,Im&T Medicines Management,Class Publishing,537309,161586.12,
DOH,London Ambulance Service NHS Trust,10/06/2020,Medical & Surgical Items,Make Ready Service,Stryker Uk Ltd,537329,28800,
DOH,London Ambulance Service NHS Trust,10/06/2020,Technical Support - Contract,Telent Mdt Maintenance,Telent Technology Services Ltd,537375,237972.6,
DOH,London Ambulance Service NHS Trust,19/06/2020,Buildings,Capital,Smith & Company Building & Company,537416,25811.88,
DOH,London Ambulance Service NHS Trust,17/06/2020,Computer Software,Covid-19 - Im&T,Advanced Health & Care,537546,42384,
DOH,London Ambulance Service NHS Trust,17/06/2020,Computer Software Maintenance,Covid-19 - Im&T,Advanced Health & Care,537546,38196,
DOH,London Ambulance Service NHS Trust,10/06/2020,Private Ambulance Hire,Ops Central - Private Amb,Falck Uk Ambulance Service Ltd,537549,50080.01,
DOH,London Ambulance Service NHS Trust,10/06/2020,Private Ambulance Hire,Ops Central - Private Amb,Falck Uk Ambulance Service Ltd,537550,49079.36,
DOH,London Ambulance Service NHS Trust,17/06/2020,Buildings,Capital,Cooper Clarke Contruction Ltd,537729,65881.2,
DOH,London Ambulance Service NHS Trust,17/06/2020,Buildings,Capital,Cooper Clarke Contruction Ltd,537730,82728,
DOH,London Ambulance Service NHS Trust,17/06/2020,Buildings,Capital,Cooper Clarke Contruction Ltd,537731,58436.1,
DOH,London Ambulance Service NHS Trust,17/06/2020,Buildings,Capital,Cooper Clarke Contruction Ltd,537732,72751.64,
DOH,London Ambulance Service NHS Trust,24/06/2020,Professional Fees,Im&T Tech Design Authority,Tm Management Solutions Ltd,537781,37500,
DOH,London Ambulance Service NHS Trust,17/06/2020,Technical Support - Contract,Capita Contract,Capita Secure Information Solutions Ltd,538130,63061.52,
DOH,London Ambulance Service NHS Trust,12/06/2020,Vehicles,Capital,Woodall Nicholson Ltd T/A Mellor Coachcraft,538197,108000,
DOH,London Ambulance Service NHS Trust,11/06/2020,Managed Service - Adv Prac,111 Nel Operations,Hays Specialist Recruitment Ltd,538288,375608.62,
DOH,London Ambulance Service NHS Trust,11/06/2020,Managed Service - Adv Prac,111 Sel Operations,Hays Specialist Recruitment Ltd,538288,219582.52,
DOH,London Ambulance Service NHS Trust,11/06/2020,Managed Service - Call Handler,111 Nel Operations,Hays Specialist Recruitment Ltd,538288,49603.68,
DOH,London Ambulance Service NHS Trust,11/06/2020,Managed Service - Call Handler,111 Sel Operations,Hays Specialist Recruitment Ltd,538288,109099.52,
DOH,London Ambulance Service NHS Trust,11/06/2020,Managed Service - Gps,111 Nel Operations,Hays Specialist Recruitment Ltd,538288,333951.12,
DOH,London Ambulance Service NHS Trust,11/06/2020,Managed Service - Gps,111 Sel Operations,Hays Specialist Recruitment Ltd,538288,382716.94,
DOH,London Ambulance Service NHS Trust,11/06/2020,Managed Service - Nurses,111 Nel Operations,Hays Specialist Recruitment Ltd,538288,113306.06,
DOH,London Ambulance Service NHS Trust,11/06/2020,Managed Service - Nurses,111 Sel Operations,Hays Specialist Recruitment Ltd,538288,126122.48,
DOH,London Ambulance Service NHS Trust,11/06/2020,Managed Service - Adv Para Pra,111 Sel Operations,Hays Specialist Recruitment Ltd,538288,12633.22,
DOH,London Ambulance Service NHS Trust,11/06/2020,Managed Service - Admin,111 Sel Operations,Hays Specialist Recruitment Ltd,538288,12990.23,
DOH,London Ambulance Service NHS Trust,11/06/2020,Managed Service - Adv Para Pra,111 Nel Operations,Hays Specialist Recruitment Ltd,538288,662.26,
DOH,London Ambulance Service NHS Trust,17/06/2020,Airwave Managed Service,Covid-19 - Fleet,Airwave Solutions Limited,538331,74410.8,
DOH,London Ambulance Service NHS Trust,17/06/2020,Airwave Managed Service,Covid-19 - Critical Care Trans,Airwave Solutions Limited,538332,82677.6,
DOH,London Ambulance Service NHS Trust,17/06/2020,Buildings,Capital,Gray Dungate Poole Ltd,538337,78492,
DOH,London Ambulance Service NHS Trust,17/06/2020,Buildings,Capital,Gray Dungate Poole Ltd,538338,79134,
DOH,London Ambulance Service NHS Trust,24/06/2020,Professional Fees,Programmes & Projects,Tm Management Solutions Ltd,538524,27121.2,
DOH,London Ambulance Service NHS Trust,11/06/2020,Medical & Surgical Items,Covid-19 - Logistics,Dickerman Overseas Contracting Co Ltd,538958,511500.00,
DOH,London Ambulance Service NHS Trust,19/06/2020,Private Ambulance Hire,Ops Central - Private Amb,Falck Uk Ambulance Service Ltd,539009,49831.76,
DOH,London Ambulance Service NHS Trust,19/06/2020,Private Ambulance Hire,Ops Central - Private Amb,Falck Uk Ambulance Service Ltd,539011,54572.84,
DOH,London Ambulance Service NHS Trust,12/06/2020,Cleaning Equipment,Covid-19 - Logistics,Interserve Hospital Services,539084,37817,
DOH,London Ambulance Service NHS Trust,15/06/2020,Awards And Ceremonies,Covid-19 - Logistics,Specsavers Optical Superstores,539447,40500.00,
DOH,London Ambulance Service NHS Trust,19/06/2020,Cleaning Of Premises,Covid-19 - Property,Lakethorne Ltd,539839,30757.72,
DOH,London Ambulance Service NHS Trust,24/06/2020,Medical & Surgical Items,Covid-19 - Logistics,Dts Trading,540036,105600.00,
DOH,London Ambulance Service NHS Trust,24/06/2020,Private Ambulance Hire,Ops Central - Private Amb,St John Ambulance Londonprince,540148,42301.67,
DOH,London Ambulance Service NHS Trust,23/06/2020,Course And Conference Fees,Hee Placements,St. Georges University Of London,540764,-200000.00,
DOH,London Ambulance Service NHS Trust,25/06/2020,Medical Gas,Director Of Ops,British Oxygen,74703,124905.7,
DOH,London Ambulance Service NHS Trust,15/06/2020,CNST Contributions,Legal Services,NHS Litigation Authority,74385,470345.2,
DOH,London Ambulance Service NHS Trust,15/06/2020,Liability to a 3rd Party Scheme,Legal Services,NHS Litigation Authority,74385,59094.4,
DOH,London Ambulance Service NHS Trust,15/06/2020,Property Expenses Scheme,Legal Services,NHS Litigation Authority,74385,1807,
DOH,London Ambulance Service NHS Trust,01/06/2020,Ensign Insurance Pre-Payment,Balance Sheet,QBE Insurance,74080,99999.99,
DOH,London Ambulance Service NHS Trust,01/06/2020,Ensign Insurance Pre-Payment,Balance Sheet,QBE Insurance,74080,99999.99,
DOH,London Ambulance Service NHS Trust,01/06/2020,Ensign Insurance Pre-Payment,Balance Sheet,QBE Insurance,74080,82968.77,
DOH,London Ambulance Service NHS Trust,30/06/2020,BP Control Account,Balance Sheet,BP Oil,74961,108737.66,
